bitfinex-derivatives/quotes_ETHF0:USTF0_20230401
["timestamp","ask_amount","ask_price","bid_price","bid_amount"]
[1680344022350,1.48598332,1822.8,1822.7,2.37316604]
[1680344023050,1.48597572,1822.8,1822.7,2.37316604]
[1680344023349,0.91049525,1822.8,1822.7,2.37316604]
[1680344023548,0.62394727,1822.8,1822.7,2.37316604]
[1680344023945,1.48597533,1822.8,1822.7,2.37316604]
[1680344024248,0.62394727,1822.8,1822.7,2.37316604]
[1680344024649,1.48597533,1822.8,1822.7,2.37316604]
[1680344025256,0.62394727,1822.8,1822.7,2.37316604]
[1680344026947,0.62394727,1822.8,1822.7,3.19216604]
[1680344029051,0.04846719,1822.8,1822.7,7.22096604]
[1680344029248,0.0338427,1822.8,1822.7,7.22096604]
[1680344029448,0.0338427,1822.8,1822.7,13.44578478]
[1680344029751,1.43750814,1823.0,1822.8,1.0]
[1680344029954,0.57548008,1822.9,1822.8,1.0]
[1680344030150,0.60932449,1822.9,1822.8,2.634]
[1680344031556,0.03384441,1822.9,1822.8,2.634]
[1680344033758,0.03384441,1822.9,1822.8,0.813]
[1680344033959,0.60932449,1822.9,1822.8,0.813]
[1680344046976,0.60932449,1822.9,1822.8,0.814]
[1680344047476,0.60932449,1822.9,1822.8,1.814]
[1680344047775,0.60932449,1822.9,1822.8,0.814]
[1680344053581,0.89587247,1822.9,1822.8,0.814]
[1680344053975,1.47103496,1822.9,1822.8,0.814]
[1680344054481,0.89587247,1822.9,1822.8,0.814]
[1680344056983,0.89587247,1822.9,1822.7,4.0268]
[1680344057280,0.5752238,1822.8,1822.7,4.0268]
[1680344057683,0.60975033,1822.8,1822.7,4.0268]
[1680344061482,0.60535813,1822.8,1822.7,4.0268]
[1680344070391,0.60535813,1822.8,1822.7,4.0258]
[1680344076994,0.60535813,1822.8,1822.7,4.8468]
[1680344077690,0.60535813,1822.8,1822.7,4.0258]
[1680344088704,1.46738619,1822.8,1822.7,4.0258]
[1680344091402,0.89655459,1822.8,1822.7,4.0258]
[1680344097014,0.89655459,1822.8,1822.7,3.2078]
[1680344114319,1.71755459,1822.8,1822.6,2.22638843]
[1680344114520,1.86202806,1822.7,1822.4,4.0318]
[1680344114823,0.03400475,1822.6,1822.4,4.0318]
[1680344115022,1.86202806,1822.7,1822.4,4.0318]
[1680344116321,1.86202806,1822.7,1822.4,5.67673283]
[1680344117925,2.68302806,1822.7,1822.4,5.67673283]
[1680344119722,1.0,1822.6,1822.4,5.67673283]
[1680344119919,1.0,1822.6,1822.4,5.66873283]
[1680344121625,2.68302806,1822.7,1822.4,5.66873283]
[1680344122924,1.0,1822.6,1822.4,5.66873283]
[1680344124931,2.68302806,1822.7,1822.4,5.66873283]
[1680344126326,1.821,1822.7,1822.4,5.66873283]
[1680344127235,0.03919303,1822.6,1822.4,5.66873283]
[1680344127622,2.68302806,1822.7,1822.4,5.66873283]
[1680344128036,1.821,1822.7,1822.4,5.66873283]
[1680344128236,2.68302806,1822.7,1822.4,5.66873283]
[1680344128924,18.4,1822.6,1822.4,5.66873283]
[1680344140737,1.0,1822.5,1822.4,5.66873283]
[1680344141942,18.4,1822.6,1822.4,5.66873283]
[1680344142242,0.04046996,1822.5,1822.4,5.66873283]
[1680344142440,0.86146996,1822.5,1822.4,1.64493283]
[1680344142641,1.86146996,1822.5,1822.2,3.2078]
[1680344143239,2.72349802,1822.5,1822.2,3.2078]
[1680344143746,2.72349802,1822.5,1822.2,4.85445805]
[1680344143934,1.86146996,1822.5,1822.2,4.85445805]
[1680344147045,1.86146996,1822.5,1822.2,5.67545805]
[1680344147343,1.85719155,1822.5,1822.2,5.67545805]
[1680344147547,1.86636091,1822.5,1822.2,5.67545805]
[1680344147845,2.72838897,1822.5,1822.2,5.67545805]
[1680344148046,1.86636091,1822.5,1822.2,5.67545805]
[1680344148547,2.72838897,1822.5,1822.2,5.67545805]
[1680344152143,5.93618897,1822.5,1822.2,2.46765805]
[1680344152650,5.93618897,1822.5,1822.2,0.821]
[1680344154045,24.23618897,1822.5,1822.2,0.821]
[1680344156942,0.821,1822.4,1822.1,0.818]
[1680344157248,0.86638196,1822.4,1822.1,0.818]
[1680344167858,0.04538196,1822.4,1822.3,0.815]
[1680344168058,0.86202806,1822.7,1822.4,1.0]
[1680344168353,0.86202806,1822.7,1822.5,0.817]
[1680344168555,19.16202806,1822.7,1822.5,0.817]
[1680344169053,0.86202806,1822.6,1822.5,0.817]
[1680344169455,19.16202806,1822.7,1822.5,0.817]
[1680344170349,0.86202806,1822.6,1822.5,0.817]
[1680344170553,1.86202806,1822.6,1822.5,0.817]
[1680344170756,0.86202806,1822.6,1822.5,0.817]
[1680344171057,19.16202806,1822.7,1822.5,0.817]
[1680344171949,19.16202806,1822.7,1822.5,1.37337215]
[1680344172451,0.86202806,1822.6,1822.5,1.37337215]
[1680344173751,19.16202806,1822.7,1822.5,1.37337215]
[1680344174452,0.86202806,1822.6,1822.5,1.37337215]
[1680344174652,19.16202806,1822.7,1822.5,1.37337215]
[1680344176958,19.16202806,1822.7,1822.5,0.55637215]
[1680344177258,19.16202806,1822.7,1822.4,4.0228]
[1680344177866,0.86202806,1822.6,1822.4,4.0228]
[1680344178065,0.86202806,1822.7,1822.4,4.0228]
[1680344178367,0.86202806,1823.0,1822.7,0.821]
[1680344178554,0.86202806,1823.0,1822.9,1.821]
[1680344179366,0.86202806,1823.0,1822.9,0.821]
[1680344182064,1.43635105,1823.0,1822.9,0.821]
[1680344182268,0.57432299,1823.0,1822.9,0.821]
[1680344183968,0.57432299,1823.0,1822.9,1.821]
[1680344184173,1.43635105,1823.1,1822.9,1.821]
[1680344184472,0.57432299,1823.1,1823.0,3.2078]
[1680344184675,0.57432299,1823.1,1822.9,1.821]
[1680344184865,18.4,1823.0,1822.9,1.821]
[1680344185066,0.57432299,1823.1,1822.9,0.821]
[1680344185270,0.57432299,1823.1,1823.0,3.2078]
[1680344185868,0.57432299,1823.1,1823.0,4.0228]
[1680344186370,1.43635105,1823.2,1823.1,1.0]
[1680344187168,0.57432299,1823.2,1823.1,1.0]
[1680344187471,0.57432299,1823.5,1823.2,0.819]
[1680344187676,0.57432299,1823.6,1823.4,4.0288]
[1680344187868,1.43635105,1823.7,1823.5,0.819]
[1680344188074,0.57432299,1823.6,1823.5,0.819]
[1680344188264,0.57432299,1823.7,1823.5,0.819]
[1680344188570,0.57432299,1823.7,1823.6,3.2078]
[1680344190370,2.39532299,1823.8,1823.6,3.2078]
[1680344190568,2.39532299,1823.8,1823.5,0.819]
[1680344190765,3.25735105,1823.8,1823.5,0.819]
[1680344191464,2.39532299,1823.8,1823.5,0.819]
[1680344191868,2.39532299,1823.8,1823.6,3.2078]
[1680344192972,1.39532299,1823.8,1823.6,3.2078]
[1680344194580,0.821,1823.8,1823.6,3.2078]
[1680344197785,2.39532299,1823.9,1823.6,4.0238]
[1680344200877,5.60312299,1823.9,1823.6,0.816]
[1680344201979,2.39532299,1823.9,1823.6,0.816]
[1680344203276,5.60312299,1823.9,1823.6,0.816]
[1680344203985,6.46515105,1823.9,1823.6,0.816]
[1680344205487,5.60312299,1823.9,1823.6,0.816]
[1680344206986,0.818,1823.8,1823.5,0.813]
[1680344208689,1.39232299,1823.8,1823.5,0.813]
[1680344209185,0.818,1823.8,1823.5,0.813]
[1680344209486,1.39232299,1823.8,1823.5,0.813]
[1680344212584,1.39232299,1823.8,1823.6,3.2078]
[1680344217087,1.39232299,1823.8,1823.6,4.0288]
[1680344217088,0.57432299,1823.8,1823.6,4.0288]
[1680344218295,0.57432299,1823.7,1823.6,4.0288]
[1680344220094,1.43635105,1823.8,1823.6,4.0288]
[1680344220291,0.57432299,1823.7,1823.6,4.0288]
[1680344222295,0.86202806,1823.7,1823.6,4.0288]
[1680344223295,1.43541989,1823.7,1823.6,4.0288]
[1680344224391,0.86202806,1823.7,1823.6,4.0288]
[1680344229988,1.14967223,1823.8,1823.6,4.0288]
[1680344230292,2.01104235,1823.7,1823.6,4.0288]
[1680344231797,2.01104235,1823.7,1823.6,5.70171374]
[1680344232400,2.29821337,1823.7,1823.6,5.70171374]
[1680344236998,2.29821337,1823.7,1823.6,5.69771374]
[1680344237599,0.86137012,1823.7,1823.6,5.69771374]
[1680344237903,0.85655265,1823.7,1823.6,5.69771374]
[1680344238500,2.2933959,1823.7,1823.6,5.69771374]
[1680344239505,0.85655265,1823.7,1823.6,5.69771374]
[1680344239993,2.0069861,1823.7,1823.6,5.69771374]
[1680344240200,0.85655265,1823.7,1823.6,5.69771374]
[1680344240799,2.00699487,1823.7,1823.6,5.69771374]
[1680344241199,0.85655265,1823.7,1823.6,5.69771374]
[1680344242502,2.00697149,1823.7,1823.6,5.69771374]
[1680344242703,0.85655265,1823.7,1823.6,5.69771374]
[1680344244611,2.00697994,1823.7,1823.6,5.69771374]
[1680344245006,0.85655265,1823.7,1823.6,5.69771374]
[1680344245207,2.00697796,1823.7,1823.6,5.69771374]
[1680344246512,0.85655265,1823.7,1823.6,5.69771374]
[1680344247313,2.00697226,1823.7,1823.6,5.69771374]
[1680344248408,2.00698394,1823.7,1823.6,5.69771374]
[1680344250213,2.00697478,1823.7,1823.6,5.69771374]
[1680344250415,0.85655265,1823.7,1823.6,5.69771374]
[1680344250614,2.00704066,1823.7,1823.6,5.69771374]
[1680344250817,0.85655265,1823.7,1823.6,5.69771374]
[1680344251118,2.00703822,1823.7,1823.6,5.69771374]
[1680344252115,0.85655265,1823.7,1823.6,5.69771374]
[1680344253122,2.2933959,1823.7,1823.6,5.69771374]
[1680344254728,2.2933959,1823.7,1823.5,0.821]
[1680344254929,2.15063438,1823.6,1823.5,0.821]
[1680344255420,2.43684325,1823.6,1823.5,0.821]
[1680344257028,2.43684325,1823.6,1823.4,1.35105151]
[1680344257212,1.15066623,1823.5,1823.4,0.816]
[1680344257931,1.15066623,1823.5,1823.4,4.0238]
[1680344259523,1.15066623,1823.5,1823.4,0.816]
[1680344262432,1.15066623,1823.5,1823.4,4.0238]
[1680344263031,2.15066623,1823.6,1823.4,4.0238]
[1680344263229,1.15066623,1823.5,1823.4,4.0238]
[1680344263831,1.15066623,1823.5,1823.4,1.36430062]
[1680344264226,2.15066623,1823.6,1823.4,1.36430062]
[1680344264530,2.15066623,1823.6,1823.4,4.57210062]
[1680344264729,1.15066623,1823.5,1823.4,4.57210062]
[1680344264932,2.15066623,1823.6,1823.4,4.57210062]
[1680344265630,1.15066623,1823.6,1823.4,4.57210062]
[1680344271830,2.00721888,1823.7,1823.5,1.821]
[1680344272036,2.00721888,1823.7,1823.6,4.0218]
[1680344277036,2.00721888,1823.7,1823.6,4.0238]
[1680344285738,0.85655265,1823.7,1823.6,4.0238]
[1680344286244,0.57497359,1823.8,1823.6,5.6578]
[1680344286540,0.57497359,1823.8,1823.7,1.638]
[1680344286746,0.57497359,1823.8,1823.7,2.638]
[1680344286940,0.57497359,1823.9,1823.7,8.36891398]
[1680344287136,0.57497359,1823.9,1823.8,5.8418]
[1680344288544,0.57497359,1823.9,1823.8,6.6628]
[1680344288743,0.57497359,1824.0,1823.8,5.8418]
[1680344288945,0.57497359,1824.0,1823.9,2.634]
[1680344289348,0.57497359,1824.0,1823.9,8.58604398]
[1680344293448,4.2011365,1824.1,1823.9,8.58604398]
[1680344293654,4.2011365,1824.1,1824.0,4.0248]
[1680344299355,3.62616291,1824.1,1824.0,4.0248]
[1680344299854,4.2011365,1824.1,1824.0,4.0248]
[1680344300653,3.62616291,1824.1,1824.0,4.0248]
[1680344313368,4.2011365,1824.1,1824.0,4.0248]
[1680344322376,4.2011365,1824.1,1824.0,0.821]
[1680344322577,5.44716291,1824.1,1823.8,0.813]
[1680344322874,0.57394479,1823.9,1823.8,0.813]
[1680344324972,2.15066623,1824.0,1823.8,0.813]
[1680344325172,0.5741649,1823.9,1823.8,0.813]
[1680344325375,2.15066623,1824.0,1823.8,0.813]
[1680344325975,1.0,1824.0,1823.8,0.813]
[1680344326278,2.15066623,1824.0,1823.8,0.813]
[1680344346092,0.86200942,1823.9,1823.8,0.813]
[1680344347489,1.15066623,1823.9,1823.8,0.813]
[1680344347688,5.35846623,1824.0,1823.8,0.813]
[1680344351688,1.96866623,1823.9,1823.6,4.0238]
[1680344351893,0.57467755,1823.7,1823.6,4.0238]
[1680344352188,1.57467755,1823.7,1823.6,4.0238]
[1680344357091,1.57467755,1823.7,1823.6,3.2078]
[1680344362797,2.43669388,1823.7,1823.6,3.2078]
[1680344363800,1.43669388,1823.7,1823.6,3.2078]
[1680344364702,0.86201633,1823.7,1823.6,3.2078]
[1680344365903,0.5748985,1823.7,1823.6,4.0238]
[1680344366602,1.43691483,1823.7,1823.6,4.0238]
[1680344366803,0.86201633,1823.7,1823.6,4.0238]
[1680344366998,1.43704036,1823.7,1823.6,4.0238]
[1680344367199,0.57502403,1823.7,1823.6,4.0238]
[1680344367596,1.43704036,1823.7,1823.6,4.0238]
[1680344367996,0.57502403,1823.7,1823.6,4.0238]
[1680344368301,1.43704036,1823.7,1823.6,4.0238]
[1680344368500,0.86201633,1823.7,1823.6,4.0238]
[1680344368903,1.43708087,1823.7,1823.6,4.0238]
[1680344369805,1.43708721,1823.7,1823.6,4.0238]
[1680344370403,0.86201633,1823.7,1823.6,4.0238]
[1680344370807,1.43709354,1823.7,1823.6,4.0238]
[1680344370999,0.86201633,1823.7,1823.6,4.0238]
[1680344371200,1.43709758,1823.7,1823.6,4.0238]
[1680344371705,0.57508125,1823.7,1823.6,4.0238]
[1680344371906,0.86201633,1823.7,1823.6,4.0238]
[1680344372507,1.43710401,1823.7,1823.6,4.0238]
[1680344372706,0.86201633,1823.7,1823.6,4.0238]
[1680344372908,1.43709848,1823.7,1823.6,4.0238]
[1680344373102,1.43709923,1823.7,1823.6,4.0238]
[1680344374101,0.86201633,1823.7,1823.6,4.0238]
[1680344374607,1.43710724,1823.7,1823.6,4.0238]
[1680344375002,0.86201633,1823.7,1823.6,4.0238]
[1680344389109,1.15066623,1823.7,1823.5,0.813]
[1680344389410,0.86291329,1823.6,1823.5,0.813]
[1680344389611,1.86291329,1823.6,1823.5,0.813]
[1680344390223,1.0,1823.6,1823.5,0.813]
[1680344390519,2.15066623,1823.6,1823.5,0.813]
[1680344393321,1.0,1823.6,1823.5,0.813]
[1680344395131,2.15066623,1823.6,1823.5,0.813]
[1680344395331,1.0,1823.6,1823.5,0.813]
[1680344397028,1.0,1823.6,1823.4,1.373782]
[1680344397232,1.43694203,1823.5,1823.4,0.814]
[1680344397433,0.57477681,1823.5,1823.4,0.814]
[1680344400934,0.57477681,1823.5,1823.4,1.35184795]
[1680344401335,1.43694203,1823.5,1823.4,1.35184795]
[1680344401634,0.57477681,1823.5,1823.4,1.35184795]
[1680344404133,1.43694203,1823.5,1823.4,1.35184795]
[1680344404344,0.57477681,1823.5,1823.4,1.35184795]
[1680344417041,0.57477681,1823.5,1823.4,1.35884795]
[1680344417340,0.57477681,1823.5,1823.4,4.56664795]
[1680344417540,0.57477681,1823.6,1823.5,1.0]
[1680344417844,0.57477681,1823.6,1823.5,1.814]
[1680344418041,0.57477681,1823.7,1823.5,2.635]
[1680344418236,0.57477681,1823.7,1823.6,4.8498]
[1680344418438,1.43694203,1823.8,1823.6,4.8498]
[1680344418738,0.86216522,1823.8,1823.7,1.818]
[1680344418940,1.4364927,1823.8,1823.7,1.818]
[1680344419243,0.86216522,1823.8,1823.7,1.818]
[1680344419643,1.43650283,1823.8,1823.7,1.818]
[1680344419946,1.4365039,1823.8,1823.7,1.818]
[1680344420746,0.86216522,1823.8,1823.7,0.818]
[1680344420945,2.01283145,1823.8,1823.6,0.819]
[1680344421238,1.0,1823.7,1823.6,0.819]
[1680344421545,1.86166834,1823.7,1823.6,0.819]
[1680344421745,0.86166834,1823.7,1823.6,0.819]
[1680344423247,2.15066623,1823.8,1823.6,0.819]
[1680344423545,0.86176424,1823.7,1823.6,0.819]
[1680344423939,3.2078,1823.7,1823.6,0.819]
[1680344424141,4.06955805,1823.7,1823.6,0.819]
[1680344424348,0.86175805,1823.7,1823.6,0.819]
[1680344427042,0.86175805,1823.7,1823.6,0.815]
[1680344433856,0.86228862,1823.7,1823.6,0.815]
[1680344435855,0.86228862,1823.7,1823.6,1.632]
[1680344436258,1.43709273,1823.7,1823.6,1.632]
[1680344437758,0.86228862,1823.7,1823.6,1.632]
[1680344437961,1.43703051,1823.7,1823.6,1.632]
[1680344438152,0.57474189,1823.7,1823.6,1.632]
[1680344452973,1.43703051,1823.7,1823.6,1.632]
[1680344455073,0.86228862,1823.7,1823.6,1.632]
[1680344460378,0.86228862,1823.7,1823.6,0.817]
[1680344463277,0.86228862,1823.7,1823.6,4.0248]
[1680344463474,0.86228862,1823.7,1823.6,0.817]
[1680344467182,0.86228862,1823.7,1823.6,1.638]
[1680344481400,0.85807268,1823.7,1823.6,1.638]
[1680344481605,0.85807268,1823.7,1823.6,2.459]
[1680344482005,0.57529531,1823.7,1823.6,2.459]
[1680344482601,1.15066623,1824.1,1823.7,6.548]
[1680344482901,0.61066828,1824.1,1824.0,0.821]
[1680344483104,0.61066828,1824.1,1824.0,1.821]
[1680344483310,0.61066828,1824.1,1824.0,0.821]
[1680344483501,0.61066828,1824.1,1824.0,1.821]
[1680344483701,0.61066828,1824.1,1824.0,0.821]
[1680344485110,0.61066828,1824.1,1824.0,1.821]
[1680344485905,2.43684325,1824.3,1824.0,1.821]
[1680344486111,2.43684325,1824.3,1824.2,0.816]
[1680344486312,2.11658228,1824.3,1824.2,0.816]
[1680344488216,1.43684325,1824.3,1824.2,0.816]
[1680344489014,2.11658368,1824.3,1824.2,0.816]
[1680344489812,1.43684325,1824.3,1824.2,0.816]
[1680344491117,2.11659131,1824.3,1824.2,0.816]
[1680344491318,1.43684325,1824.3,1824.2,0.816]
[1680344491516,2.93759302,1824.3,1824.0,0.813]
[1680344491716,5.64464325,1824.2,1824.0,0.813]
[1680344492217,1.0,1824.1,1824.0,0.813]
[1680344498414,4.2078,1824.2,1824.0,0.813]
[1680344498815,1.0,1824.1,1824.0,0.813]
[1680344502223,16.7078,1824.2,1824.0,0.813]
[1680344503018,1.0,1824.1,1824.0,0.813]
[1680344503720,16.7078,1824.2,1824.0,0.813]
[1680344505720,15.7078,1824.2,1824.0,0.813]
[1680344506416,12.5,1824.2,1824.0,0.813]
[1680344507030,15.7078,1824.2,1824.0,0.819]
[1680344507229,12.5,1824.2,1824.0,0.819]
[1680344507421,15.7078,1824.2,1824.0,0.819]
[1680344507825,12.5,1824.2,1824.0,0.819]
[1680344508128,15.7078,1824.2,1824.0,0.819]
[1680344508522,12.5,1824.2,1824.0,0.819]
[1680344509421,15.7078,1824.2,1824.0,0.819]
[1680344512832,16.85652055,1824.2,1824.0,0.819]
[1680344515831,1.14872055,1824.1,1824.0,0.819]
[1680344516034,16.85652055,1824.2,1824.0,0.819]
[1680344516334,1.14872055,1824.1,1824.0,0.819]
[1680344523842,1.14872055,1824.1,1824.0,1.819]
[1680344527354,1.14872055,1824.1,1824.0,0.819]
[1680344527946,1.43684325,1824.2,1824.0,1.819]
[1680344528252,1.15046049,1824.1,1824.0,1.0]
[1680344528446,1.15046049,1824.1,1824.0,1.818]
[1680344533944,1.15046049,1824.1,1824.0,2.639]
[1680344534455,1.15046049,1824.2,1824.0,5.8468]
[1680344534649,1.15046049,1824.1,1824.0,4.2078]
[1680344534847,1.15046049,1824.1,1824.0,5.8438]
[1680344535056,1.15046049,1824.2,1824.0,5.8438]
[1680344535353,1.15046049,1824.2,1824.1,1.636]
[1680344545455,1.15046049,1824.3,1824.1,1.636]
[1680344545655,1.15046049,1824.3,1824.2,0.821]
[1680344560969,1.43684325,1824.5,1824.2,5.8498]
[1680344561172,1.43684325,1824.5,1824.4,1.636]
[1680344561374,4.64464325,1824.6,1824.4,1.636]
[1680344561672,4.64464325,1824.6,1824.5,0.814]
[1680344561880,5.32428511,1824.6,1824.5,0.814]
[1680344562574,6.32428511,1824.6,1824.5,0.814]
[1680344562776,5.32428511,1824.6,1824.5,0.814]
[1680344565082,2.11648511,1824.6,1824.5,0.814]
[1680344570381,1.43684325,1824.6,1824.5,0.814]
[1680344570581,2.1164777,1824.6,1824.5,0.814]
[1680344571375,1.43684325,1824.6,1824.5,0.814]
[1680344571577,2.11647851,1824.6,1824.5,0.814]
[1680344571883,5.32427851,1824.6,1824.5,0.814]
[1680344572083,1.43684325,1824.6,1824.5,0.814]
[1680344573281,2.11647656,1824.6,1824.5,0.814]
[1680344574283,1.43684325,1824.6,1824.5,0.814]
[1680344574483,5.32427664,1824.6,1824.5,0.814]
[1680344574784,6.32427664,1824.6,1824.5,0.814]
[1680344575886,2.43684325,1824.6,1824.5,0.814]
[1680344576380,6.32428232,1824.6,1824.5,0.814]
[1680344576979,6.32428232,1824.6,1824.4,0.815]
[1680344577186,5.64464325,1824.6,1824.4,0.815]
[1680344577386,2.43684325,1824.6,1824.4,0.815]
[1680344579486,5.64464325,1824.6,1824.4,0.815]
[1680344580188,2.43684325,1824.6,1824.4,0.815]
[1680344581189,5.64464325,1824.6,1824.4,0.815]
[1680344582094,2.43684325,1824.6,1824.4,0.815]
[1680344582292,1.43684325,1824.6,1824.4,0.815]
[1680344582987,2.11646651,1824.6,1824.4,0.815]
[1680344583591,1.43684325,1824.6,1824.4,0.815]
[1680344585300,2.11646675,1824.6,1824.4,0.815]
[1680344585496,1.43684325,1824.6,1824.4,0.815]
[1680344586700,1.43684325,1824.7,1824.4,0.815]
[1680344586898,1.43684325,1824.6,1824.4,0.815]
[1680344587197,1.43684325,1824.6,1824.5,0.814]
[1680344590297,5.32426378,1824.6,1824.5,0.814]
[1680344591595,3.88742053,1824.6,1824.5,0.814]
[1680344591803,5.32386402,1824.6,1824.5,0.814]
[1680344596003,1.0,1824.5,1824.4,0.821]
[1680344596203,2.43673673,1824.5,1824.4,0.821]
[1680344597006,2.43673673,1824.5,1824.3,0.819]
[1680344597309,1.1493893,1824.4,1824.3,0.819]
[1680344599602,4.3571893,1824.4,1824.3,0.819]
[1680344603612,5.64453673,1824.4,1824.1,0.816]
[1680344603816,1.15007278,1824.3,1824.1,0.816]
[1680344604006,1.0,1824.2,1824.1,0.816]
[1680344604513,2.15007278,1824.2,1824.1,0.816]
[1680344605114,5.35787278,1824.2,1824.1,0.816]
[1680344606013,4.35787278,1824.2,1824.1,0.816]
[1680344607015,4.35787278,1824.2,1824.1,0.813]
[1680344611423,0.86195941,1824.2,1824.1,0.813]
[1680344611622,1.15007278,1824.3,1824.1,0.813]
[1680344611926,0.86189291,1824.2,1824.1,0.813]
[1680344616933,0.86189291,1824.2,1824.1,0.821]
[1680344637847,1.15007278,1824.3,1824.1,0.821]
[1680344638755,0.86220484,1824.2,1824.1,0.821]
[1680344645462,0.86220484,1824.2,1824.1,4.0288]
[1680344646663,0.86220484,1824.2,1824.1,4.8418]
[1680344646968,0.86220484,1824.2,1824.1,10.93170147]
[1680344647170,0.57495526,1824.2,1824.1,10.93170147]
[1680344648269,1.4371601,1824.3,1824.1,10.93170147]
[1680344648471,1.4371601,1824.3,1824.2,1.813]
[1680344648768,1.4371601,1824.3,1824.2,8.05194407]
[1680344649161,0.57495526,1824.3,1824.2,8.05194407]
[1680344649365,1.4371601,1824.3,1824.2,8.05194407]
[1680344649564,0.86220484,1824.3,1824.2,8.05194407]
[1680344649870,0.57481522,1824.3,1824.2,8.05194407]
[1680344652475,1.43181671,1824.4,1824.2,8.05194407]
[1680344652667,0.85700149,1824.4,1824.3,4.0228]
[1680344652870,0.85700149,1824.4,1824.3,5.0228]
[1680344653171,0.57449513,1824.4,1824.3,11.57909103]
[1680344654169,0.57449513,1824.5,1824.3,11.57909103]
[1680344654369,0.57449513,1824.5,1824.4,1.813]
[1680344654970,1.15007278,1824.7,1824.4,1.813]
[1680344655170,1.15007278,1824.7,1824.6,0.816]
[1680344670687,1.15007278,1824.7,1824.6,0.80829566]
[1680344673195,3.2078,1824.7,1824.5,0.817]
[1680344673483,2.14783069,1824.6,1824.5,0.817]
[1680344674789,1.14783069,1824.6,1824.5,0.817]
[1680344674983,2.14783069,1824.6,1824.5,0.817]
[1680344682388,1.0,1824.6,1824.5,0.817]
[1680344683087,1.14853171,1824.6,1824.5,0.817]
[1680344683288,2.14852343,1824.6,1824.5,0.817]
[1680344683793,5.64453673,1824.7,1824.5,0.817]
[1680344684690,1.0,1824.6,1824.5,0.817]
[1680344685192,5.64453673,1824.7,1824.5,0.817]
[1680344685392,1.14874012,1824.6,1824.5,0.817]
[1680344685696,5.64453673,1824.7,1824.5,0.817]
[1680344685996,1.43673673,1824.6,1824.5,0.817]
[1680344686195,2.43673673,1824.6,1824.5,0.817]
[1680344686597,1.43673673,1824.6,1824.5,0.817]
[1680344690198,2.11635664,1824.6,1824.5,0.817]
[1680344690702,1.43673673,1824.6,1824.5,0.817]
[1680344692298,2.11635433,1824.6,1824.5,0.817]
[1680344697107,2.11635433,1824.6,1824.5,0.813]
[1680344703207,1.43673673,1824.6,1824.5,0.813]
[1680344703803,2.11634933,1824.6,1824.5,0.813]
[1680344704701,1.43673673,1824.6,1824.5,0.813]
[1680344705304,2.11634733,1824.6,1824.5,0.813]
[1680344713810,1.43673673,1824.6,1824.5,0.813]
[1680344714611,2.11633997,1824.6,1824.5,0.813]
[1680344714809,2.79594549,1824.6,1824.5,0.813]
[1680344716014,2.11633997,1824.6,1824.5,0.813]
[1680344716209,2.79594507,1824.6,1824.5,0.813]
[1680344723207,1.35920834,1824.6,1824.5,0.813]
[1680344724214,2.79710352,1824.6,1824.5,0.813]
[1680344724413,1.35920834,1824.6,1824.5,0.813]
[1680344724713,2.79709268,1824.6,1824.5,0.813]
[1680344765454,2.11748758,1824.6,1824.5,0.813]
[1680344765661,0.67960324,1824.6,1824.5,0.813]
[1680344766950,1.82975475,1824.6,1824.5,0.813]
[1680344767862,1.8297494,1824.6,1824.5,0.813]
[1680344769465,0.67960324,1824.6,1824.5,0.813]
[1680344772770,1.82960689,1824.6,1824.5,0.813]
[1680344775370,0.67960324,1824.6,1824.5,0.813]
[1680344777474,1.82948438,1824.6,1824.5,0.813]
[1680344780981,1.82945653,1824.6,1824.5,0.813]
[1680344783976,2.11748758,1824.6,1824.5,0.813]
[1680344787783,0.67960324,1824.6,1824.5,0.813]
[1680344790591,2.11748758,1824.6,1824.5,0.813]
[1680344793784,3.79709012,1824.6,1824.5,0.813]
[1680344798497,2.79709012,1824.6,1824.5,0.813]
[1680344798896,3.79709012,1824.6,1824.5,0.813]
[1680344799394,3.79709012,1824.6,1824.5,0.815]
[1680344799797,3.11748688,1824.6,1824.5,0.815]
[1680344800193,0.0061991,1824.5,1824.3,0.821]
[1680344800397,3.88740254,1824.4,1824.3,0.821]
[1680344800599,5.3250419,1824.4,1824.3,0.821]
[1680344800995,4.64543936,1824.4,1824.3,0.821]
[1680344802904,3.2078,1824.4,1824.3,0.821]
[1680344803106,4.64543936,1824.4,1824.3,0.821]
[1680344805004,3.2078,1824.4,1824.3,0.821]
[1680344805205,3.2078,1824.4,1824.3,0.81427969]
[1680344805600,4.35672357,1824.4,1824.3,0.81427969]
[1680344806700,1.14892357,1824.4,1824.3,0.81427969]
[1680344817016,1.14892357,1824.4,1824.3,0.821]
[1680344826920,4.36292267,1824.5,1824.3,0.821]
[1680344827315,1.15512267,1824.5,1824.3,0.821]
[1680344827521,0.86124882,1824.4,1824.3,0.821]
[1680344828723,1.15512267,1824.5,1824.3,0.821]
[1680344829321,0.86134354,1824.4,1824.3,0.821]
[1680344829921,1.15512267,1824.5,1824.3,0.821]
[1680344830823,1.14892357,1824.4,1824.3,0.821]
[1680344831121,1.15512267,1824.5,1824.3,0.821]
[1680344831323,0.86141975,1824.4,1824.3,0.821]
[1680344832828,1.15512267,1824.5,1824.3,0.821]
[1680344833123,1.14892357,1824.4,1824.3,0.821]
[1680344833321,1.15512267,1824.5,1824.3,0.821]
[1680344834322,1.14892357,1824.4,1824.3,0.821]
[1680344837024,1.14892357,1824.4,1824.3,0.816]
[1680344837930,1.15512267,1824.5,1824.3,0.816]
[1680344838524,0.86177358,1824.4,1824.3,0.816]
[1680344838926,1.15512267,1824.5,1824.3,0.816]
[1680344839828,0.86190893,1824.4,1824.3,0.816]
[1680344842627,0.86190893,1824.4,1824.3,6.54981874]
[1680344844227,0.8562175,1824.4,1824.3,6.54981874]